Cogmind - Beta 13 @@@ ROGUE MODE // 2024.04.24 @ 22:43:13 Player: Exceptionally Mediocre Result: Destroyed by D-53 Grenadier with Mini Grenade Launcher Performance ------------- Evolutions (0) 0 Regions Visited (2) 400 Robots Destroyed (30) 150 Value Destroyed (448) 448 Prototype IDs (0) 0 Alien Tech Used (0) 0 Bonus (0) 0 TOTAL SCORE: 998 Bonus ------- None Cogmind --------- Core Integrity 0/250 Matter 206/300 Energy 95/100 System Corruption 8% Temperature Cool (0) Movement Core (50) Location -10/Mines Parts ------- > --- POWER (1) -------- (None) > --- PROPULSION (2) --- (None) > --- UTILITY (2) ------ Utility Shielding > --- WEAPON (2) ------- Assault Rifle > --- INVENTORY (5) ---- Light Ion Engine Signal Interpreter Medium Laser Light Assault Rifle Mining Laser Peak State ------------ > --- POWER ------------ Ion Engine > --- PROPULSION ------- Light Treads Light Treads > --- UTILITY ---------- Small Storage Unit Improved Terrain Scanner > --- WEAPON ----------- Assault Rifle Assault Rifle > --- INVENTORY -------- Light Ion Engine Assault Rifle [Rating: 9] Favorites ----------- Power Ion Engine Engine Ion Engine Propulsion Light Treads Treads Light Treads Utility Medium Storage Unit Device Structural Scanner Storage Medium Storage Unit Protection Utility Shielding Weapon Assault Rifle Ballistic Gun Assault Rifle Launcher Grenade Launcher Build | -11 -10 -10 ------- Run | Yrd Mat Min Slots Evolved . | . . . Power . | . . . Propulsion . | . . . Utility . | . . . Weapon . | . . . Parts Attached 22 | 8 6 8 Power 4 | 2 . 2 Engine 4 | 2 . 2 Core . | . . . Reactor . | . . . Propulsion 3 | 2 1 . Treads 3 | 2 1 . Leg . | . . . Wheel . | . . . Hover . | . . . Flight . | . . . Utility 5 | 2 2 1 Device 2 | 1 1 . Storage 2 | 1 1 . Processor . | . . . Hackware . | . . . Protection 1 | . . 1 Artifact . | . . . Weapon 10 | 2 3 5 Energy Gun . | . . . Energy Cannon . | . . . Ballistic Gun 6 | 2 2 2 Ballistic Cannon . | . . . Launcher 4 | . 1 3 Special Weapon . | . . . Impact Weapon . | . . . Slashing Weapon . | . . . Piercing Weapon . | . . . Special Melee Weapon . | . . . Unidentified Prototypes . | . . . Parts Lost 9 | . 2 7 Power 1 | . . 1 Propulsion 2 | . . 2 Utility 2 | . 1 1 Weapon 4 | . 1 3 Highest Loss Streak 7 | . 2 7 To Critical Strikes . | . . . Average Slot Usage (%) 98 | . 98 98 Engine 14 | . 14 14 Treads 27 | . 28 27 Device 12 | . 12 13 Storage 14 | . 14 14 Ballistic Gun 27 | . 27 27 Naked Turns . | . . . Heaviest Build 20 | 15 20 20 Greatest Support 40 | 40 40 40 Greatest Overweight (x) 4 | . . 4 Average Overweight (x) . | . . . Largest Inventory Capacity 10 | 8 10 10 Average Capacity 9 | 7 9 9 Most Carried 10 | 5 10 10 Average Carried 8 | 2 8 9 Final Capacity 10 | 8 10 5 Final Carried 10 | 5 10 5 Class Distribution -------------------- 100% | Mutant Dominant Class ---------------- Mutant | -10/Materials Mutant | -10/Mines Resources | -11 -10 -10 ----------- Run | Yrd Mat Min Matter Collected 722 | 322 334 66 Remotely . | . . . Salvage Created 773 | 161 561 51 Parts 52 | 13 35 4 Haulers Intercepted 1 | . 1 . Recyclers Shooed 1 | . 1 . Parts Field Recycled . | . . . Retrieved Matter . | . . . Parts Self-Destructed . | . . . Prevented . | . . . Kills | -11 -10 -10 ------- Run | Yrd Mat Min Combat Hostiles Destroyed 30 | . 11 19 Guns 9 | . 8 1 AOE 21 | . 3 18 Classes Destroyed 11 | 3 7 1 Worker 4 | 1 3 . Builder 1 | . 1 . Tunneler 3 | 3 . . Hauler 1 | . 1 . Recycler 2 | 1 1 . Mechanic 1 | . 1 . Operator 2 | . 2 . Watcher 2 | . 2 . Swarmer 8 | . 5 3 Grunt 6 | . 6 . Assembled 16 | . . 16 Best Kill Streak 16 | 3 9 16 Combat Bots Only 16 | . 5 16 Max Kills in Single Turn 4 | 1 3 4 Gunslinging 1 | . 1 . Exploded 4 | . 2 4 Melee . | . . . Uniques/NPCs Destroyed . | . . . Combat | -11 -10 -10 -------- Run | Yrd Mat Min Hostile Shots Fired 111 | . 80 31 Missed 37 | . 29 8 Damage Taken 1164 | . 634 530 Core 279 | . 84 195 Absorbed by Shields . | . . . Redirected to Shielding 5 | . . 5 Core Remaining (%) 100 | 100 . . Volleys Fired 64 | 7 48 9 Largest 2 | 2 2 1 Hottest 40 | 40 40 30 Shots Fired 115 | 14 92 9 Gun 105 | 14 89 2 Cannon . | . . . Launcher 10 | . 3 7 Special . | . . . Kinetic 105 | 14 89 2 Thermal . | . . . Explosive 10 | . 3 7 Electromagnetic . | . . . Robot Hit Streak 9 | 9 9 2 Robot Miss Streak 5 | 1 5 1 Penetration Max . | . . . Secondary Targets 3 | . 3 . Max Gunslinging Chain 1 | . 1 . Shots Hit Robots 76 | 12 62 2 Core Hits 79 | 5 34 40 Critical Kills . | . . . Critical Parts Destroyed . | . . . Critical Strikes . | . . . Melee Attacks . | . . . Impact . | . . . Slashing . | . . . Piercing . | . . . Sneak Attacks . | . . . Combat Hostiles . | . . . Follow-up Attacks . | . . . Damage Inflicted 2349 | 146 1010 1193 Guns 947 | 146 779 22 Cannons . | . . . Explosions 1402 | . 231 1171 Melee . | . . . Ramming . | . . . Kinetic 947 | 146 779 22 Thermal . | . . . Explosive 1402 | . 231 1171 Electromagnetic . | . . . Impact . | . . . Slashing . | . . . Piercing . | . . . Highest Corruption 8 | . 2 8 Average Corruption 2 | . 1 2 Corruption Purged . | . . . Corruption Blocked . | . . . Effects 16 | . 13 3 Message Errors 3 | . 3 . Matter Fused 3 | . 2 1 Heat Flow Errors 3 | . 2 1 Energy Discharges 2 | . 2 . Data Loss (minor) 2 | . 1 1 Data Loss (major) 2 | . 2 . Weapon Failures 1 | . 1 . Overload Shots . | . . . Overflow Damage 20 | . . 20 Projectiles . | . . . Explosions 20 | . . 20 Melee . | . . . Knockbacks . | . . . Impact . | . . . Kinetic . | . . . Secondary . | . . . Self-Inflicted Damage 52 | . . 52 Shots 2 | . . 2 Rammed . | . . . Targets Rammed . | . . . Kicked . | . . . Crushed . | . . . Highest Temperature 211 | . 211 144 Average Temperature 53 | . 52 60 Received Heat Transfer 254 | . 234 20 Siege Activations . | . . . Robots Corrupted . | . . . Combat Hostiles . | . . . Parts Fried . | . . . Impact Corruptions . | . . . Robots Melted . | . . . Combat Hostiles . | . . . Parts Melted . | . . . Heat Transferred . | . . . Parts Sabotaged . | . . . Parts Stolen . | . . . Parts Stripped . | . . . Power Chain Reactions . | . . . Alert | -11 -10 -10 ------- Run | Yrd Mat Min Peak Influence 304 | 25 304 201 Initial 67 | . 16 67 Average 144 | 8 148 180 Maximum Alert Level 1 | . 1 1 Low Security (%) 78 | 100 68 99 Level 1 21 | . 31 . Level 2 . | . . . Level 3 . | . . . Level 4 . | . . . Level 5 . | . . . High Security . | . . . Max Security . | . . . Squads Dispatched 2 | . 2 . Investigation . | . . . Extermination . | . . . Reinforcement 2 | . 2 . Assault . | . . . Garrison . | . . . Intercept . | . . . Searches Triggered . | . . . Construction Impeded . | . . . Haulers Reinforced . | . . . Active Scanning Responses . | . . . Cargo Convoy Interrupts . | . . . Stealth | -11 -10 -10 --------- Run | Yrd Mat Min Distress Signals 1 | . 1 . Communications Jammed . | . . . Distress Signals . | . . . Times Spotted 40 | . 19 21 Peak Tracking Total 16 | . 8 16 Tactical Retreats 1 | . . 1 Traps | -11 -10 -10 ------- Run | Yrd Mat Min Traps Triggered 6 | . 6 . Indirectly . | . . . Trap Hack Attempts . | . . . Triggered . | . . . Disarmed . | . . . Reprogrammed . | . . . Reused . | . . . Traps Extracted . | . . . Installed . | . . . Triggered . | . . . Machines | -11 -10 -10 ---------- Run | Yrd Mat Min Machines Disabled 3 | . . 3 Max in Single Turn 3 | . . 3 Machines Repaired . | . . . Machines Dismantled . | . . . Machines Sabotaged . | . . . Overloaded Fab Kills . | . . . Hacking | -11 -10 -10 --------- Run | Yrd Mat Min Machines Accessed 5 | . 5 . Terminals 5 | . 5 . Fabricators . | . . . Repair Stations . | . . . Recycling Units . | . . . Scanalyzers . | . . . Garrison Access . | . . . Total Hacks 10 | . 10 . Successful 6 | . 6 . Failed 4 | . 4 . Catastrophic . | . . . Database Lockouts . | . . . Manual 9 | . 9 . Terminals 10 | . 10 . Fabricators . | . . . Repair Stations . | . . . Recycling Units . | . . . Scanalyzers . | . . . Garrison Access . | . . . Terminal Hacks 1 | . 1 . Terminal Index 1 | . 1 . Fabricator Hacks . | . . . Repair Station Hacks . | . . . Recycling Unit Hacks . | . . . Scanalyzer . | . . . Garrison Access Hacks . | . . . Unauthorized Hacks 5 | . 5 . Terminals 5 | . 5 . Botnet 5 | . 5 . Fabricators . | . . . Repair Stations . | . . . Recycling Units . | . . . Scanalyzers . | . . . Garrison Access . | . . . Data Cores Recovered . | . . . Used . | . . . Hacking Detections 3 | . 3 . Full Trace Events . | . . . Feedback Events . | . . . Feedback Blocked . | . . . Robot Schematics Acquired . | . . . Robots Built . | . . . Authchips . | . . . Time . | . . . Total Robot Build Rating . | . . . Part Schematics Acquired . | . . . Parts Built . | . . . Authchips . | . . . Time . | . . . Total Part Build Rating . | . . . Parts Repaired . | . . . Time . | . . . Parts Recycled . | . . . Recycled Matter . | . . . Retrieved Matter . | . . . Retrieved Components . | . . . Parts Scanalyzed . | . . . Part Schematics Acquired . | . . . Parts Damaged . | . . . Bothacking | -11 -10 -10 ------------ Run | Yrd Mat Min Used RIF Installer . | . . . Robots Hacked . | . . . Non-combat . | . . . Combat . | . . . Robot Hacks Applied . | . . . Relay Couplers Released . | . . . Fabnet Peak Effective % . | . . . Robots Rewired . | . . . Allies Hacked . | . . . Hacks Repelled . | . . . Allies | -11 -10 -10 -------- Run | Yrd Mat Min Total Allies . | . . . Largest Group . | . . . Highest-Rated Group . | . . . Highest-Rated Ally . | . . . Total Orders . | . . . Ally Attacks . | . . . Total Damage . | . . . Kills . | . . . Allies Corrupted . | . . . Allies Melted . | . . . Intel | -11 -10 -10 ------- Run | Yrd Mat Min Robot Analysis Total . | . . . Derelict Logs Recovered 1 | . . 1 Drone Launches . | . . . Drone Recoveries . | . . . Exploration | -11 -10 -10 ------------- Run | Yrd Mat Min Turns Passed 1397 | 109 965 323 Spaces Moved 733 | 50 503 180 Core 8 | 7 . 1 Treads 725 | 43 503 179 Legs . | . . . Wheels . | . . . Hover . | . . . Flight . | . . . Fastest Speed 50 | 50 160 160 Average Speed 159 | 144 160 160 Slowest Speed 250 | 160 160 250 Overloaded Moves . | . . . Propulsion Burnouts . | . . . Robots Hopped . | . . . Cave-ins Triggered . | . . . Exploration Rate (%) 44 | 5 75 52 Regions Visited 2 Branch Regions 1 Pre-discovered Areas . | . . . Known Exits Taken . | . . . Unknown Exits Taken 2 | 1 1 . Scrap Searched 2 | . . 2 Spaces Dug . | . . . Terrain Destroyed 69 | . 22 47 Melee . | . . . Projectile . | . . . AOE 69 | . 22 47 Terrain Rammed . | . . . Walls Destroyed . | . . . Machines Disabled . | . . . Actions | -11 -10 -10 --------- Run | Yrd Mat Min Total 844 | 69 570 205 Wait 1 | . 1 . Move 731 | 49 502 180 Hop . | . . . Pick Up 17 | 5 9 3 Fast Attach 8 | 6 2 . Attach 5 | 1 1 3 Detach . | . . . Swap 9 | 1 3 5 Drop 9 | . 4 5 Fire 64 | 7 48 9 Melee . | . . . Ram . | . . . Kick . | . . . Crush . | . . . Escape Stasis . | . . . Rewire . | . . . Trap . | . . . Miscellaneous . | . . . Route ------- -11/Scrapyard -10/Materials (discovered 2 exits: [*Mat] / [*Min]) -10/Mines History --------- Turn | Location | Event 8 | -11/Scrapyard | Discovered new exit (range 14) 110 | -11/Scrapyard | Entered Materials 316 | -10/Materials | Build established: Mutant 750 | -10/Materials | Discovered new exit (range 11) 958 | -10/Materials | Discovered new exit (range 12) 1075 | -10/Materials | Entered Mines 1146 | -10/Mines | Learned Materials terminal intel 1179 | -10/Mines | Found a hidden stash of uninstalled traps 1371 | -10/Mines | Assembled infested the area 1383 | -10/Mines | Core integrity fell below 50% 1397 | -10/Mines | Core integrity fell below 20% 1398 | -10/Mines | Destroyed by D-53 Grenadier with Mini Grenade Launcher Last Messages --------------- 01385_ Destroyed Asb. Hover Unit. 01385_ as-65109 destroyed. 01385_ Grenade Launcher destroyed. 01385_ Destroyed Grenade Launcher. 01385_ as-88218 destroyed. 01385_ as-78211 destroyed. 01388_ Lgt. Treads destroyed. 01388_ System corrupted by crushing effect (+5). 01388_ Structural Scanner destroyed. 01391_ Assault Rifle destroyed. 01391_ System corrupted by crushing effect (+1). 01391_ C-30 ARC bursts open, deploying its payload. 01391_ D-53 Grenadier unfolds itself. 01393_ as-30372 destroyed. 01393_ as-72936 destroyed. 01394_ The unstable cave ceiling collapses. 01394_ Lgt. Ion Engine destroyed. 01394_ as-79142 destroyed. 01397_ Dropped Med. Storage Unit. Map ----- +----------------------------------------------------+ | ???????????????## ==! ## | | ???????????????## ] ## | | ??????????????### #### ### | | ??????????????## ## ##### #######? | | ?????????????? ???#### ##### ##### ? | | ????????????????????#### ###### ##### ##? | | ????????????????????### ####### ##?## ##? | | ???????????????????### ######## ##?## ##? | | ??????????????????#### ## ###### ##### ### | | ?????????????????#### ## ##### ##### ### | | ???????????????? ### ## | | ???????????????? ## """" ############ | | ???????????????? # %"""" ############ | | ???????????????? # """" ###?????### | | ???????????????? ## ###??????## | | ???????????????? ## ## ####??????## | | ?????????????????### d #### ###???????## | | ?????????????????#### ##### ###????????## | | ??????????????????#### d###### ####????????## ## | | ???????????????????#### ##?#######?????????## ## | | ????????????????????### ##??#####??????????## ## | | ????????????????????# ###???????????????## ## | | ???????????????????## #???????????????## ## | | ???????????????????# ##????????????#### ## | | ???????????????????## ! #???????????##### | | ???????????????????# [@ #???????????### & & | | ???????????????????# ##???????????## & | | ???????????????????## #???????????## | | ???????????????????## ##??????????### | | ???????????????????## # ##???????####### | | ??????????????????? ##???????####### | | ??????????????????? #???????#### | | ?????????????????? #??######## # | | ????????????????? #?######## # | | ???????????????? #?### | | ??????????????? # #?## ### | | ??????????????# # ##?### ##### | | ??????????????? ### #####?############ # | | ?????????????????#########???########?### ## | | ???????????????????####???????????????##### #### | | ???????????????????????????????????????#### #### | | ?????????????????????????????????????????## #### | | ?????????????????????????????????????????## ## | | ?????????????????????????????????????????##### ## | | ?????????????????????????????????????????##### ## | | ??????????????????????????????????????????#### ## | | ??????????????????????????????????????????## # | | ??????????????????????????????????????????## ## | | ??????????????????????????????????????????####### | | ??????????????????????????????????????????######? | +----------------------------------------------------+ Best States ------------- Heat Dissipation 25 Energy Generation 10 Energy Capacity 250 Matter Stores 300 Matter Capacity 300 Sight Range 16 Terrain Scan Range 16 Terrain Scan Density 10 Evasion (%) 40 Recoil Reduction 2 Item Schematics ----------------- None Robot Schematics ------------------ None Fabricated ------------ Nothing Alien Tech Used ----------------- None Achievements -------------- None Challenges ------------ None Game ------ Seed ColdDeepFragment Manual? 0 Play Time 00:13:42 Cumulative 111.3 hours Start 2024.04.24 @ 22:15:46 End 2024.04.24 @ 22:43:13 Sessions 1 Manual Loads 0 Difficulty Rogue Special Mode None Game No. 128 Rogue 128 Adventurer 0 Explorer 0 Win Type - Total 0 Types 0/0/0/0/0/0/0/0/0 Lore% 29 Gallery% 54 Achievement% 41 Wizard Run 0 Options --------- Layout 1 ASCII 0 Keyboard 1 Movement Vi Keybinds 0 Fullscreen 1 Font 24/Smallcaps Map View 50x35 Zoom Use 0% Tactical HUD 1 Map Filters NONE Filters NONE Steam 1 RUN: 83719eae-947f-462e-9a98-b22d1eb89806